{"text_format":"1","workbook":"xlsx","n_sheets":3,"sheets":["12월","Sheet2","Sheet3"],"not_rendered":{"charts":0,"images":0,"macros":1,"external_links":0,"defined_names":0,"comments":0,"pivot_tables":0},"unopened":[],"bounds":{"document_bytes":16777216,"sheet_cells":100000,"rows_first":2000,"rows_last":500,"rows_between":2000,"halvings":0,"cell_chars":16384,"cell_head_chars":4096},"cells_cut":0,"cells_raw":0,"read":"whole","date_system":"1900"}

{"sheet":"12월","index":0,"n_rows":46,"n_cols":23,"rows_kept":46,"cut":false,"hidden":false,"merged":[[1,10,1,11],[1,1,2,1],[1,2,1,3],[1,4,1,5],[1,6,1,7],[1,8,1,9],[4,21,4,22],[1,12,1,13],[1,14,1,15],[1,16,1,17],[1,18,1,19]]}
[]
[null,"12월","비     씨 ",null,"신     한",null,"삼     성",null,"현     대",null,"롯     데",null,"국     민",null,"외     환",null,"농     협",null,"합     계"]
[null,null,"매출","입금","매출","입금","매출","입금","매출","입금","매출","입금","매출","입금","매출","입금","매출","입금","매출","입금"]
[null,"잔  액",null,null,null,null,null,null,null,null,null,null,null,null,null,null,null,null,null,null,null,"작업일","2020-01-02"]
[null,"합  계",{"$f":"SUM(C6:C36)","v":0},{"$f":"SUM(D6:D36)","v":0},0,0,0,0,0,0,0,0,0,0,0,0,0,0,{"$f":"SUM(S6:S25)","v":0},{"$f":"SUM(T6:T25)","v":0},null,"매출"]
[null,1,null,null,null,null,null,null,null,null,null,null,null,null,null,null,null,null,{"$f":"SUM(C6,E6,G6,I6,K6,M6,O6,Q6)","v":0},null,null,"비씨",2966053]
[null,2,null,null,null,null,null,null,null,null,null,null,null,null,null,null,null,null,null,null,null,"신한",2361935]
[null,3,null,null,null,null,null,null,null,null,null,null,null,null,null,null,null,null,{"$f":"SUM(C8,E8,G8,I8,K8,M8,O8,Q8)","v":0},null,null,"삼성",968040]
[null,4,null,null,null,null,null,null,null,null,null,null,null,null,null,null,null,null,0,null,null,"현대",1504708]
[null,5,null,null,null,null,null,null,null,null,null,null,null,null,null,null,null,null,0,null,null,"롯데",394177]
[null,6,null,null,null,null,null,null,null,null,null,null,null,null,null,null,null,null,0,null,null,"국민",2431162]
[null,7,null,null,null,null,null,null,null,null,null,null,null,null,null,null,null,null,0,null,null,"외환",549133]
[null,8,null,null,null,null,null,null,null,null,null,null,null,null,null,null,null,null,0,null,null,"농협",536000]
[null,9,null,null,null,null,null,null,null,null,null,null,null,null,null,null,null,null,0,null,null,null,{"$f":"SUM(W6:W13)","v":11711208}]
[null,10,null,null,null,null,null,null,null,null,null,null,null,null,null,null,null,null,0]
[null,11,null,null,null,null,null,null,null,null,null,null,null,null,null,null,null,null,0]
[null,12,null,null,null,null,null,null,null,null,null,null,null,null,null,null,null,null,0]
[null,13,null,null,null,null,null,null,null,null,null,null,null,null,null,null,null,null,0]
[null,14,null,null,null,null,null,null,null,null,null,null,null,null,null,null,null,null,0]
[null,15,null,null,null,null,null,null,null,null,null,null,null,null,null,null,null,null,0]
[null,16,null,null,null,null,null,null,null,null,null,null,null,null,null,null,null,null,0]
[null,17,null,null,null,null,null,null,null,null,null,null,null,null,null,null,null,null,0]
[null,18,null,null,null,null,null,null,null,null,null,null,null,null,null,null,null,null,0]
[null,19,null,null,null,null,null,null,null,null,null,null,null,null,null,null,null,null,0]
[null,20,null,null,null,null,null,null,null,null,null,null,null,null,null,null,null,null,0]
[null,21,null,null,null,null,null,null,null,null,null,null,null,null,null,null,null,null,0]
[null,22,null,null,null,null,null,null,null,null,null,null,null,null,null,null,null,null,0]
[null,23,null,null,null,null,null,null,null,null,null,null,null,null,null,null,null,null,0]
[null,24,null,null,null,null,null,null,null,null,null,null,null,null,null,null,null,null,0]
[null,25,null,null,null,null,null,null,null,null,null,null,null,null,null,null,null,null,0]
[null,26,null,null,null,null,null,null,null,null,null,null,null,null,null,null,null,null,0]
[null,27,null,null,null,null,null,null,null,null,null,null,null,null,null,null,null,null,0]
[null,28,null,null,null,null,null,null,null,null,null,null,null,null,null,null,null,null,0]
[null,29,null,null,null,null,null,null,null,null,null,null,null,null,null,null,null,null,0]
[null,30,null,null,null,null,null,null,null,null,null,null,null,null,null,null,null,null,0]
[null,31,null,null,null,null,null,null,null,null,null,null,null,null,null,null,null,null,0]
[]
[null,"No.","입금일자","카드사","가맹점번호","결제은행","결제계좌","매출건수","매출금액","보류금액","부가세대리납부금액","기타입금","실입금"]
[null,"3","2020-12-31","KB카드",null,null,null,52,2431162,0,0,0,2396195]
[null,"6","2020-12-31","신한카드",null,null,null,44,2361935,0,0,0,2327284]
[null,"14","2020-12-31","비씨카드",null,null,null,58,2966053,0,0,0,2922845]
[null,"17","2020-12-31","롯데카드",null,null,null,10,394177,0,0,0,388265]
[null,"21","2020-12-31","현대카드",null,null,null,20,1404708,0,0,0,1383638]
[null,"23","2020-12-31","삼성카드",null,null,null,14,968040,0,0,0,953521]
[null,"30","2020-12-31","농협NH카드",null,null,null,12,536000,0,0,0,528510]
[null,"32","2020-12-31","하나카드",null,null,null,12,549133,0,0,0,541351]

{"sheet":"Sheet2","index":1,"n_rows":0,"n_cols":0,"rows_kept":0,"cut":false,"hidden":false,"merged":[]}

{"sheet":"Sheet3","index":2,"n_rows":0,"n_cols":0,"rows_kept":0,"cut":false,"hidden":false,"merged":[]}